[Event "SELL Games"]
[Site "Tartu, Estonia"]
[Date "2023.05.20"]
[Round "9.5"]
[White "Tvarijonas, Tomas"]
[Black "Simkunaite, Gabija"]
[Result "1/2-1/2"]
[TimeControl "15min + 10sec per move each"]
[WhiteTitle "FM"]
[BlackTitle "WFM"]
[WhiteFideId "12805432"]
[BlackFideId "12808253"]
[WhiteElo "2181"]
[BlackElo "1964"]

1. e4 {[%clk 00:15:19]} c5 {[%clk 00:15:17]} {[%emt 00:00:03]} 2. Nf3 {[%clk
00:15:28]} {[%emt 00:00:01]} Nc6 {[%clk 00:15:24]} {[%emt 00:00:03]} 3. d4
{[%clk 00:15:37]} {[%emt 00:00:01]} cxd4 {[%clk 00:15:26]} {[%emt 00:00:07]} 4.
Nxd4 {[%clk 00:15:46]} e5 {[%clk 00:15:35]} {[%emt 00:00:01]} 5. Nb5 {[%clk
00:15:50]} {[%emt 00:00:06]} a6 {[%clk 00:15:43]} {[%emt 00:00:02]} 6. Nd6+
{[%clk 00:15:45]} {[%emt 00:00:15]} Bxd6 {[%clk 00:15:51]} {[%emt 00:00:02]} 7.
Qxd6 {[%clk 00:15:53]} {[%emt 00:00:02]} Qf6 {[%clk 00:15:59]} {[%emt
00:00:01]} 8. Qxf6 {[%clk 00:15:15]} {[%emt 00:00:49]} Nxf6 {[%clk 00:16:07]}
{[%emt 00:00:02]} 9. Bd3 {[%clk 00:15:04]} {[%emt 00:00:21]} d5 {[%clk
00:16:08]} {[%emt 00:00:09]} 10. exd5 {[%clk 00:15:07]} {[%emt 00:00:07]} Nxd5
{[%clk 00:16:15]} {[%emt 00:00:02]} 11. Be4 {[%clk 00:14:52]} {[%emt 00:00:25]}
Nde7 {[%clk 00:16:10]} {[%emt 00:00:15]} 12. O-O {[%clk 00:14:31]} {[%emt
00:00:31]} f5 {[%clk 00:15:42]} {[%emt 00:00:38]} 13. Bxc6+ {[%clk 00:14:26]}
{[%emt 00:00:15]} Nxc6 {[%clk 00:15:49]} {[%emt 00:00:03]} 14. Be3 {[%clk
00:14:26]} {[%emt 00:00:09]} Kf7 {[%clk 00:14:49]} {[%emt 00:01:09]} 15. Na3
{[%clk 00:14:26]} {[%emt 00:00:11]} Be6 {[%clk 00:14:50]} {[%emt 00:00:08]} 16.
Bb6 {[%clk 00:14:23]} {[%emt 00:00:14]} Rhc8 {[%clk 00:14:27]} {[%emt
00:00:32]} 17. Rfe1 {[%clk 00:13:56]} {[%emt 00:00:38]} Kf6 {[%clk 00:13:56]}
{[%emt 00:00:41]} 18. Rad1 {[%clk 00:12:31]} {[%emt 00:01:36]} Nb4 {[%clk
00:12:51]} {[%emt 00:01:14]} 19. c3 {[%clk 00:11:01]} {[%emt 00:01:40]} Nd5
{[%clk 00:12:54]} {[%emt 00:00:07]} 20. Be3 {[%clk 00:11:03]} {[%emt 00:00:08]}
Nxe3 {[%clk 00:10:04]} {[%emt 00:03:00]} 21. Rxe3 {[%clk 00:11:02]} {[%emt
00:00:12]} Rd8 {[%clk 00:09:11]} {[%emt 00:01:03]} 22. Red3 {[%clk 00:11:07]}
{[%emt 00:00:04]} Rxd3 {[%clk 00:09:04]} {[%emt 00:00:17]} 23. Rxd3 {[%clk
00:11:16]} {[%emt 00:00:01]} Bxa2 {[%clk 00:08:35]} {[%emt 00:00:39]} 24. c4
{[%clk 00:09:57]} {[%emt 00:01:28]} Rc8 {[%clk 00:08:29]} {[%emt 00:00:15]} 25.
Rc3 {[%clk 00:09:20]} {[%emt 00:00:48]} b5 {[%clk 00:06:58]} {[%emt 00:01:42]}
26. cxb5 {[%clk 00:08:44]} {[%emt 00:00:46]} Rxc3 {[%clk 00:07:07]} {[%emt
00:00:01]} 27. bxc3 {[%clk 00:08:51]} {[%emt 00:00:03]} axb5 {[%clk 00:07:15]}
{[%emt 00:00:02]} 28. Nxb5 {[%clk 00:08:52]} {[%emt 00:00:08]} Ke6 {[%clk
00:07:15]} {[%emt 00:00:10]} 29. Na3 {[%clk 00:08:32]} {[%emt 00:00:31]} Kd5
{[%clk 00:06:41]} {[%emt 00:00:43]} 30. f3 {[%clk 00:08:37]} {[%emt 00:00:05]}
e4 {[%clk 00:05:49]} {[%emt 00:01:02]} 31. Kf2 {[%clk 00:07:16]} {[%emt
00:01:31]} g5 {[%clk 00:04:41]} {[%emt 00:01:18]} 32. Nc2 {[%clk 00:06:10]}
{[%emt 00:01:16]} Ke5 {[%clk 00:04:08]} {[%emt 00:00:43]} 33. Nd4 {[%clk
00:05:32]} {[%emt 00:00:48]} Bd5 {[%clk 00:03:29]} {[%emt 00:00:48]} 34. fxe4
{[%clk 00:05:28]} {[%emt 00:00:14]} Bxe4 {[%clk 00:03:11]} {[%emt 00:00:28]} 35.
g3 {[%clk 00:05:01]} {[%emt 00:00:38]} h6 {[%clk 00:02:19]} {[%emt 00:01:03]}
36. Ke3 {[%clk 00:04:42]} {[%emt 00:00:29]} Kd5 {[%clk 00:01:42]} {[%emt
00:00:46]} 37. Nb3 {[%clk 00:03:50]} {[%emt 00:01:02]} Ke5 {[%clk 00:01:08]}
{[%emt 00:00:44]} 38. Nd2 {[%clk 00:03:56]} {[%emt 00:00:04]} Bc6 {[%clk
00:00:55]} {[%emt 00:00:23]} 39. Nb3 {[%clk 00:03:15]} {[%emt 00:00:50]} Be4
{[%clk 00:00:54]} {[%emt 00:00:12]} 40. Nc5 {[%clk 00:03:14]} {[%emt 00:00:11]}
Ba8 {[%clk 00:00:43]} {[%emt 00:00:20]} 41. Nd7+ {[%clk 00:03:16]} {[%emt
00:00:09]} Ke6 {[%clk 00:00:30]} {[%emt 00:00:22]} 42. Nb6 {[%clk 00:03:19]}
{[%emt 00:00:08]} Bb7 {[%clk 00:00:39]} {[%emt 00:00:01]} 43. c4 {[%clk
00:03:07]} {[%emt 00:00:21]} h5 {[%clk 00:00:34]} {[%emt 00:00:15]} 44. Kd4
{[%clk 00:02:17]} {[%emt 00:01:00]} f4 {[%clk 00:00:23]} {[%emt 00:00:21]} 45.
gxf4 {[%clk 00:01:47]} {[%emt 00:00:40]} gxf4 {[%clk 00:00:29]} {[%emt
00:00:04]} 46. Na4 {[%clk 00:01:25]} {[%emt 00:00:32]} Bc6 {[%clk 00:00:30]}
{[%emt 00:00:09]} 47. Nb2 {[%clk 00:01:22]} {[%emt 00:00:13]} Kf5 {[%clk
00:00:31]} {[%emt 00:00:09]} 48. Nd3 {[%clk 00:01:31]} h4 {[%clk 00:00:22]}
{[%emt 00:00:19]} 49. Nf2 {[%clk 00:01:25]} {[%emt 00:00:15]} Ba8 {[%clk
00:00:17]} {[%emt 00:00:15]} 50. Kd3 {[%clk 00:00:53]} {[%emt 00:00:42]} Bb7
{[%clk 00:00:24]} {[%emt 00:00:03]} 51. Kd4 {[%clk 00:00:37]} {[%emt 00:00:26]}
Ba8 {[%clk 00:00:33]} {[%emt 00:00:01]} 52. c5 {[%clk 00:00:45]} {[%emt
00:00:01]} Bc6 {[%clk 00:00:40]} {[%emt 00:00:03]} 53. Nd3 {[%clk 00:00:31]}
{[%emt 00:00:24]} h3 {[%clk 00:00:24]} {[%emt 00:00:26]} 54. Nf2 {[%clk
00:00:20]} {[%emt 00:00:21]} Bg2 {[%clk 00:00:32]} {[%emt 00:00:02]} 55. Nd3
{[%clk 00:00:25]} {[%emt 00:00:05]} Bc6 {[%clk 00:00:34]} {[%emt 00:00:08]} 56.
Ne5 {[%clk 00:00:24]} {[%emt 00:00:10]} Bb7 {[%clk 00:00:23]} {[%emt 00:00:21]}
57. c6 {[%clk 00:00:29]} {[%emt 00:00:05]} Bc8 {[%clk 00:00:33]} 58. Kd5 {[%clk
00:00:21]} {[%emt 00:00:19]} Ba6 {[%clk 00:00:29]} {[%emt 00:00:14]} 59. c7
{[%clk 00:00:17]} {[%emt 00:00:14]} Bb7+ {[%clk 00:00:34]} {[%emt 00:00:05]} 60.
Kd4 {[%clk 00:00:12]} {[%emt 00:00:15]} Ke6 {[%clk 00:00:36]} {[%emt 00:00:07]}
61. Ng6 {[%clk 00:00:17]} {[%emt 00:00:05]} Kd6 {[%clk 00:00:24]} {[%emt
00:00:22]} 62. Nxf4 {[%clk 00:00:19]} {[%emt 00:00:08]} Kxc7 {[%clk 00:00:20]}
{[%emt 00:00:14]} 63. Nxh3 {[%clk 00:00:27]} {[%emt 00:00:02]} Kd7 {[%clk
00:00:29]} 64. Ke5 {[%clk 00:00:34]} {[%emt 00:00:04]} Ke7 {[%clk 00:00:38]} 65.
Ng5 {[%clk 00:00:43]} {[%emt 00:00:01]} Ba6 {[%clk 00:00:39]} {[%emt 00:00:10]}
66. Kf5 {[%clk 00:00:36]} {[%emt 00:00:17]} Be2 {[%clk 00:00:41]} {[%emt
00:00:08]} 67. Kg6 {[%clk 00:00:40]} {[%emt 00:00:06]} Kf8 {[%clk 00:00:43]}
{[%emt 00:00:07]} 68. h4 {[%clk 00:00:40]} {[%emt 00:00:11]} Kg8 {[%clk
00:00:42]} {[%emt 00:00:11]} 69. Ne6 {[%clk 00:00:46]} {[%emt 00:00:03]} Kh8
{[%clk 00:00:45]} {[%emt 00:00:08]} 70. Nf4 {[%clk 00:00:54]} {[%emt 00:00:02]}
Bd1 {[%clk 00:00:52]} {[%emt 00:00:02]} 71. Ng2 {[%clk 00:00:53]} {[%emt
00:00:11]} Kg8 {[%clk 00:00:58]} {[%emt 00:00:04]} 72. Ne3 {[%clk 00:01:01]}
{[%emt 00:00:02]} Be2 {[%clk 00:01:06]} {[%emt 00:00:02]} 73. Nd5 {[%clk
00:01:03]} {[%emt 00:00:08]} Kh8 {[%clk 00:01:12]} {[%emt 00:00:04]} 74. Kf5
{[%clk 00:01:11]} {[%emt 00:00:02]} Kg7 {[%clk 00:01:08]} {[%emt 00:00:13]} 75.
Nc3 {[%clk 00:01:20]} {[%emt 00:00:02]} Bf3 {[%clk 00:01:09]} {[%emt 00:00:07]}
76. Kf4 {[%clk 00:01:29]} {[%emt 00:00:03]} Bh5 {[%clk 00:01:15]} {[%emt
00:00:04]} 77. Ne4 {[%clk 00:01:35]} {[%emt 00:00:05]} Kh6 {[%clk 00:01:17]}
{[%emt 00:00:07]} 78. Ng3 {[%clk 00:01:43]} {[%emt 00:00:02]} Bg6 {[%clk
00:01:17]} {[%emt 00:00:09]} 79. Ke5 {[%clk 00:01:52]} {[%emt 00:00:02]} Bh5
{[%clk 00:01:20]} {[%emt 00:00:06]} 80. Kf6 {[%clk 00:02:00]} {[%emt 00:00:02]}
Bg4 {[%clk 00:01:24]} {[%emt 00:00:06]} 81. Ke5 {[%clk 00:02:08]} {[%emt
00:00:03]} Bd1 {[%clk 00:01:30]} {[%emt 00:00:03]} 82. Ke4 {[%clk 00:02:15]}
{[%emt 00:00:04]} Kg7 {[%clk 00:01:33]} {[%emt 00:00:07]} 83. Nf1 {[%clk
00:02:19]} {[%emt 00:00:05]} Kh6 {[%clk 00:01:37]} {[%emt 00:00:06]} 84. Ng3
{[%clk 00:02:27]} {[%emt 00:00:03]} Kg7 {[%clk 00:01:46]} {[%emt 00:00:01]} 85.
Kf5 {[%clk 00:02:32]} {[%emt 00:00:05]} Kh7 {[%clk 00:01:52]} {[%emt 00:00:03]}
86. Kg5 {[%clk 00:02:41]} Kg7 {[%clk 00:01:58]} {[%emt 00:00:04]} 87. Ne4
{[%clk 00:02:50]} {[%emt 00:00:02]} Kh8 {[%clk 00:02:02]} {[%emt 00:00:06]} 88.
Nc3 {[%clk 00:02:57]} {[%emt 00:00:03]} Bf3 {[%clk 00:02:09]} {[%emt 00:00:02]}
89. Kf4 {[%clk 00:03:04]} {[%emt 00:00:03]} Bh5 {[%clk 00:02:18]} {[%emt
00:00:01]} 90. Ne4 {[%clk 00:03:09]} {[%emt 00:00:05]} Bd1 {[%clk 00:02:26]}
{[%emt 00:00:02]} 91. Nf2 {[%clk 00:03:18]} Be2 {[%clk 00:02:34]} {[%emt
00:00:03]} 92. Ne4 {[%clk 00:03:24]} {[%emt 00:00:04]} Bd1 {[%clk 00:02:41]}
{[%emt 00:00:03]} 93. Ng3 {[%clk 00:03:33]} {[%emt 00:00:01]} Kh7 {[%clk
00:02:47]} {[%emt 00:00:04]} 94. Ke3 {[%clk 00:03:40]} {[%emt 00:00:03]} Bg4
{[%clk 00:02:53]} {[%emt 00:00:04]} 95. Nf1 {[%clk 00:03:47]} {[%emt 00:00:03]}
Kh6 {[%clk 00:02:59]} {[%emt 00:00:04]} 96. Kf4 {[%clk 00:03:56]} Bd1 {[%clk
00:03:03]} {[%emt 00:00:06]} 97. Ne3 {[%clk 00:04:05]} Be2 {[%clk 00:03:11]}
{[%emt 00:00:02]} 98. Kg3 {[%clk 00:04:12]} {[%emt 00:00:03]} Kh7 {[%clk
00:03:18]} {[%emt 00:00:03]} 99. Nd5 {[%clk 00:04:21]} {[%emt 00:00:01]} Kg7
{[%clk 00:03:21]} {[%emt 00:00:07]} 100. Kf2 {[%clk 00:04:28]} {[%emt
00:00:03]} Bd1 {[%clk 00:03:26]} {[%emt 00:00:04]} 101. Nc3 {[%clk 00:04:35]}
{[%emt 00:00:05]} Bh5 {[%clk 00:03:34]} {[%emt 00:00:02]} 102. Ke3 {[%clk
00:04:44]} Kh6 {[%clk 00:03:37]} {[%emt 00:00:07]} 103. Kf4 {[%clk 00:04:54]}
Kg7 {[%clk 00:03:41]} {[%emt 00:00:05]} 104. Nd5 {[%clk 00:05:03]} {[%emt
00:00:01]} Bd1 {[%clk 00:03:50]} {[%emt 00:00:01]} 105. Ne3 {[%clk 00:05:12]}
{[%emt 00:00:01]} Be2 {[%clk 00:03:58]} {[%emt 00:00:01]} 106. Nf5+ {[%clk
00:05:20]} {[%emt 00:00:01]} Kh7 {[%clk 00:04:07]} {[%emt 00:00:01]} 107. Kg5
{[%clk 00:05:29]} {[%emt 00:00:02]} Kh8 {[%clk 00:04:13]} {[%emt 00:00:03]} 108.
Kh6 {[%clk 00:05:37]} {[%emt 00:00:03]} Bd1 {[%clk 00:04:18]} {[%emt 00:00:05]}
109. Ng3 {[%clk 00:05:44]} {[%emt 00:00:02]} Bf3 {[%clk 00:04:25]} {[%emt
00:00:02]} 110. h5 {[%clk 00:05:46]} {[%emt 00:00:09]} Bxh5 {[%clk 00:04:34]}
{[%emt 00:00:01]} 111. Nxh5 1/2-1/2

[Event "SELL Games"]
[Site "Tartu, Estonia"]
[Date "2023.05.20"]
[Round "9.6"]
[White "Sibajeva, Marija"]
[Black "Vanagaite, Giedre"]
[Result "0-1"]
[TimeControl "15min + 10sec per move each"]
[WhiteTitle "WFM"]
[BlackTitle "WFM"]
[WhiteFideId "12807583"]
[BlackFideId "12800546"]
[WhiteElo "1953"]
[BlackElo "1995"]

1. e4 {[%clk 00:15:20]} {[%emt 00:15:50]} c5 {[%clk 00:15:19]} {[%emt
00:00:01]} 2. Nf3 {[%clk 00:15:29]} Nc6 {[%clk 00:15:28]} {[%emt 00:00:01]} 3.
Bb5 {[%clk 00:15:38]} d6 {[%clk 00:15:36]} {[%emt 00:00:02]} 4. d4 {[%clk
00:15:47]} {[%emt 00:00:01]} cxd4 {[%clk 00:15:25]} {[%emt 00:00:21]} 5. Qxd4
{[%clk 00:15:56]} {[%emt 00:00:01]} Bd7 {[%clk 00:15:21]} {[%emt 00:00:14]} 6.
Bxc6 {[%clk 00:16:04]} {[%emt 00:00:02]} Bxc6 {[%clk 00:15:30]} 7. Nc3 {[%clk
00:16:12]} {[%emt 00:00:02]} Nf6 {[%clk 00:15:17]} {[%emt 00:00:23]} 8. Bg5
{[%clk 00:16:19]} {[%emt 00:00:03]} e6 {[%clk 00:15:18]} {[%emt 00:00:09]} 9.
Qd3 {[%clk 00:16:23]} {[%emt 00:00:06]} Be7 {[%clk 00:14:50]} {[%emt 00:00:37]}
10. O-O-O {[%clk 00:16:30]} {[%emt 00:00:03]} a6 {[%clk 00:14:38]} {[%emt
00:00:23]} 11. Nd4 {[%clk 00:15:57]} {[%emt 00:00:43]} Bd7 {[%clk 00:14:46]}
{[%emt 00:00:02]} 12. Kb1 {[%clk 00:15:02]} {[%emt 00:01:05]} O-O {[%clk
00:14:46]} {[%emt 00:00:10]} 13. f4 {[%clk 00:15:01]} {[%emt 00:00:10]} h6
{[%clk 00:08:50]} {[%emt 00:06:07]} 14. h4 {[%clk 00:15:09]} {[%emt 00:00:01]}
Ng4 {[%clk 00:07:55]} {[%emt 00:01:06]} 15. Bxe7 {[%clk 00:14:34]} {[%emt
00:00:45]} Qxe7 {[%clk 00:08:03]} {[%emt 00:00:02]} 16. Qf3 {[%clk 00:14:19]}
{[%emt 00:00:21]} h5 {[%clk 00:07:44]} {[%emt 00:00:32]} 17. g3 {[%clk
00:10:51]} {[%emt 00:03:38]} Rac8 {[%clk 00:07:27]} {[%emt 00:00:28]} 18. Rhe1
{[%clk 00:10:39]} {[%emt 00:00:21]} Bc6 {[%clk 00:06:33]} {[%emt 00:01:05]} 19.
f5 {[%clk 00:10:01]} {[%emt 00:00:48]} Qf6 {[%clk 00:05:19]} {[%emt 00:01:24]}
20. Rd2 {[%clk 00:07:45]} {[%emt 00:02:26]} Rcd8 {[%clk 00:02:34]} {[%emt
00:02:55]} 21. Rf1 {[%clk 00:07:42]} {[%emt 00:00:12]} Rfe8 {[%clk 00:02:10]}
{[%emt 00:00:34]} 22. Qe2 {[%clk 00:06:23]} {[%emt 00:01:28]} Qe5 {[%clk
00:01:50]} {[%emt 00:00:31]} 23. Rd3 {[%clk 00:04:41]} {[%emt 00:01:52]} d5
{[%clk 00:01:02]} {[%emt 00:00:58]} 24. fxe6 {[%clk 00:04:00]} {[%emt
00:00:51]} fxe6 {[%clk 00:01:06]} {[%emt 00:00:06]} 25. Nxc6 {[%clk 00:02:39]}
{[%emt 00:01:32]} bxc6 {[%clk 00:01:15]} {[%emt 00:00:01]} 26. Qd1 {[%clk
00:02:05]} {[%emt 00:00:42]} d4 {[%clk 00:01:08]} {[%emt 00:00:19]} 27. Rf4
{[%clk 00:01:10]} {[%emt 00:01:05]} Ne3 {[%clk 00:00:48]} {[%emt 00:00:29]} 28.
Qd2 {[%clk 00:00:52]} {[%emt 00:00:27]} Nc4 {[%clk 00:00:58]} {[%emt 00:00:02]}
29. Qd1 {[%clk 00:00:50]} {[%emt 00:00:10]} Nxb2 {[%clk 00:01:04]} {[%emt
00:00:05]} 30. Kxb2 {[%clk 00:00:57]} {[%emt 00:00:03]} dxc3+ {[%emt 00:00:02]}
31. Ka1 {[%clk 00:00:57]} {[%emt 00:00:08]} Qb5 {[%clk 00:00:28]} {[%emt
00:00:56]} 32. Qb1 {[%clk 00:01:02]} {[%emt 00:00:04]} Rxd3 {[%clk 00:00:28]}
{[%emt 00:00:10]} 33. Qxb5 {[%clk 00:00:58]} {[%emt 00:00:13]} cxb5 {[%clk
00:00:28]} {[%emt 00:00:11]} 34. cxd3 {[%clk 00:01:07]} Rd8 {[%clk 00:00:32]}
{[%emt 00:00:06]} 35. Rf3 {[%clk 00:01:11]} {[%emt 00:00:04]} Rd4 {[%clk
00:00:37]} {[%emt 00:00:07]} 36. Kb1 {[%clk 00:01:08]} {[%emt 00:00:13]} b4
{[%clk 00:00:31]} {[%emt 00:00:17]} 37. Kc2 {[%clk 00:01:13]} {[%emt 00:00:05]}
a5 {[%clk 00:00:39]} {[%emt 00:00:02]} 38. a3 {[%clk 00:00:49]} {[%emt
00:00:33]} Rd7 {[%clk 00:00:46]} {[%emt 00:00:04]} 39. Kb3 {[%clk 00:00:26]}
{[%emt 00:00:33]} Rf7 {[%clk 00:00:48]} {[%emt 00:00:07]} 40. Re3 {[%clk
00:00:24]} {[%emt 00:00:12]} Rf2 {[%clk 00:00:46]} {[%emt 00:00:12]} 41. axb4
axb4 {[%clk 00:00:56]} 42. Re1 {[%clk 00:00:17]} {[%emt 00:00:15]} Rb2+ {[%clk
00:01:04]} {[%emt 00:00:02]} 43. Kc4 {[%clk 00:00:21]} {[%emt 00:00:03]} c2
{[%clk 00:01:11]} {[%emt 00:00:06]} 44. Rc1 {[%clk 00:00:28]} {[%emt 00:00:03]}
b3 {[%clk 00:01:20]} {[%emt 00:00:01]} 45. Kc3 {[%clk 00:00:35]} {[%emt
00:00:03]} Rb1 {[%clk 00:01:29]} {[%emt 00:00:02]} 46. Kd2 {[%clk 00:00:40]}
{[%emt 00:00:05]} Rxc1 {[%clk 00:01:35]} {[%emt 00:00:04]} 47. Kxc1 {[%clk
00:00:48]} {[%emt 00:00:01]} Kf7 {[%clk 00:01:44]} {[%emt 00:00:01]} 48. Kb2
{[%clk 00:00:52]} {[%emt 00:00:06]} e5 {[%clk 00:01:52]} {[%emt 00:00:02]} 0-1

[Event "SELL Games"]
[Site "Tartu, Estonia"]
[Date "2023.05.20"]
[Round "9.7"]
[White "Mikelsons, Mikelis-Emils"]
[Black "Vaskevicius, Augustas"]
[Result "0-1"]
[TimeControl "15min + 10sec per move each"]
[WhiteFideId "11607475"]
[BlackFideId "12808008"]
[WhiteElo "1877"]
[BlackElo "1904"]

1. e4 {[%clk 00:15:19]} {[%emt 00:00:01]} c5 {[%clk 00:15:18]} {[%emt
00:00:03]} 2. Nf3 {[%clk 00:15:27]} {[%emt 00:00:02]} e6 {[%clk 00:15:24]}
{[%emt 00:00:04]} 3. c3 {[%clk 00:15:31]} {[%emt 00:00:06]} Nf6 {[%clk
00:14:43]} {[%emt 00:00:51]} 4. e5 {[%clk 00:15:39]} {[%emt 00:00:02]} Nd5
{[%clk 00:14:52]} {[%emt 00:00:01]} 5. d4 {[%clk 00:15:48]} {[%emt 00:00:01]}
cxd4 {[%clk 00:14:43]} {[%emt 00:00:18]} 6. Bc4 {[%clk 00:15:56]} {[%emt
00:00:02]} Nb6 {[%clk 00:14:28]} {[%emt 00:00:26]} 7. Bb3 {[%clk 00:16:05]}
{[%emt 00:00:01]} Nc6 {[%clk 00:13:49]} {[%emt 00:00:49]} 8. O-O {[%clk
00:16:02]} {[%emt 00:00:12]} d6 {[%clk 00:13:13]} {[%emt 00:00:47]} 9. cxd4
{[%clk 00:16:04]} {[%emt 00:00:08]} dxe5 {[%clk 00:12:49]} {[%emt 00:00:34]} 10.
dxe5 {[%clk 00:16:12]} {[%emt 00:00:02]} Be7 {[%clk 00:12:52]} {[%emt
00:00:07]} 11. Qe2 {[%clk 00:15:44]} {[%emt 00:00:38]} O-O {[%clk 00:12:25]}
{[%emt 00:00:36]} 12. Rd1 {[%clk 00:15:33]} {[%emt 00:00:21]} Qc7 {[%clk
00:12:28]} {[%emt 00:00:08]} 13. Nc3 {[%clk 00:15:39]} {[%emt 00:00:04]} a6
{[%clk 00:12:34]} {[%emt 00:00:05]} 14. Bc2 {[%clk 00:14:13]} {[%emt 00:01:36]}
Nd7 {[%clk 00:09:26]} {[%emt 00:03:18]} 15. Qe4 {[%clk 00:11:42]} {[%emt
00:02:40]} g6 {[%clk 00:07:55]} {[%emt 00:01:41]} 16. Bf4 {[%clk 00:11:28]}
{[%emt 00:00:25]} b5 {[%clk 00:07:48]} {[%emt 00:00:18]} 17. Rac1 {[%clk
00:09:55]} {[%emt 00:01:42]} Bb7 {[%clk 00:07:47]} {[%emt 00:00:11]} 18. Bb1
{[%clk 00:10:03]} {[%emt 00:00:02]} Rfd8 {[%clk 00:07:38]} {[%emt 00:00:19]} 19.
Qe3 {[%clk 00:07:37]} {[%emt 00:02:36]} Nb6 {[%clk 00:06:22]} {[%emt 00:01:26]}
20. Ne4 {[%clk 00:05:31]} {[%emt 00:02:16]} Nd5 {[%clk 00:03:40]} {[%emt
00:02:53]} 21. Rxd5 {[%clk 00:05:38]} {[%emt 00:00:03]} Rxd5 {[%clk 00:01:42]}
{[%emt 00:02:08]} 22. Nf6+ {[%clk 00:05:46]} {[%emt 00:00:02]} Bxf6 {[%clk
00:01:47]} {[%emt 00:00:05]} 23. exf6 {[%clk 00:05:54]} {[%emt 00:00:02]} Qd8
{[%clk 00:01:56]} 24. Bc7 {[%clk 00:02:51]} {[%emt 00:03:13]} Qxf6 {[%clk
00:01:31]} {[%emt 00:00:36]} 25. Qb6 {[%clk 00:02:58]} {[%emt 00:00:02]} Nd8
{[%clk 00:00:25]} {[%emt 00:01:16]} 26. Be4 {[%clk 00:02:30]} {[%emt 00:00:38]}
Qxb2 {[%clk 00:00:27]} {[%emt 00:00:08]} 27. Rf1 {[%clk 00:02:38]} {[%emt
00:00:01]} Rd7 {[%clk 00:00:36]} {[%emt 00:00:02]} 28. Bxb7 {[%emt 00:00:49]}
Nxb7 {[%clk 00:00:25]} {[%emt 00:00:19]} 29. Qxb7 {[%clk 00:01:44]} {[%emt
00:00:28]} Rf8 {[%clk 00:00:18]} {[%emt 00:00:17]} 30. Qc6 {[%clk 00:00:55]}
{[%emt 00:00:59]} Rd5 {[%clk 00:00:23]} {[%emt 00:00:06]} 31. Ba5 {[%clk
00:00:42]} {[%emt 00:00:23]} Qxa2 {[%clk 00:00:25]} {[%emt 00:00:08]} 32. Qc3
{[%clk 00:00:45]} {[%emt 00:00:07]} Qc4 {[%clk 00:00:24]} {[%emt 00:00:11]} 33.
Qe3 {[%clk 00:00:31]} {[%emt 00:00:23]} b4 {[%clk 00:00:31]} {[%emt 00:00:04]}
34. Rc1 {[%clk 00:00:35]} {[%emt 00:00:06]} Qb5 {[%clk 00:00:29]} {[%emt
00:00:13]} 35. Bc7 {[%clk 00:00:19]} {[%emt 00:00:25]} b3 {[%clk 00:00:30]}
{[%emt 00:00:09]} 36. Be5 {[%clk 00:00:20]} {[%emt 00:00:09]} f6 {[%clk
00:00:16]} {[%emt 00:00:24]} 37. Bb2 {[%clk 00:00:28]} {[%emt 00:00:02]} e5
{[%clk 00:00:25]} {[%emt 00:00:01]} 38. h4 {[%clk 00:00:26]} {[%emt 00:00:11]}
Rfd8 {[%clk 00:00:31]} {[%emt 00:00:04]} 39. Qh6 {[%clk 00:00:14]} {[%emt
00:00:22]} Rd1+ {[%clk 00:00:34]} {[%emt 00:00:07]} 40. Rxd1 {[%clk 00:00:17]}
{[%emt 00:00:07]} Rxd1+ {[%clk 00:00:43]} {[%emt 00:00:02]} 41. Kh2 {[%clk
00:00:27]} Qe2 {[%clk 00:00:22]} {[%emt 00:00:31]} 42. Ba3 {[%clk 00:00:31]}
{[%emt 00:00:05]} Rd8 {[%clk 00:00:14]} {[%emt 00:00:17]} 43. h5 {[%clk
00:00:40]} {[%emt 00:00:01]} Qe4 {[%clk 00:00:20]} {[%emt 00:00:05]} 44. hxg6
{[%clk 00:00:36]} {[%emt 00:00:14]} Qxg6 {[%clk 00:00:28]} {[%emt 00:00:02]} 45.
Qe3 {[%clk 00:00:30]} {[%emt 00:00:16]} Qh5+ {[%clk 00:00:27]} {[%emt
00:00:11]} 46. Kg3 {[%clk 00:00:34]} {[%emt 00:00:05]} Qg6+ {[%clk 00:00:23]}
{[%emt 00:00:15]} 47. Kh2 {[%clk 00:00:42]} {[%emt 00:00:01]} Qh5+ {[%clk
00:00:26]} {[%emt 00:00:06]} 48. Kg3 {[%clk 00:00:51]} {[%emt 00:00:01]} Qg6+
{[%clk 00:00:14]} {[%emt 00:00:23]} 49. Kh2 {[%clk 00:00:59]} {[%emt 00:00:02]}
Qf7 {[%clk 00:00:19]} {[%emt 00:00:05]} 50. Nh4 {[%clk 00:01:03]} {[%emt
00:00:05]} Rd4 {[%clk 00:00:21]} {[%emt 00:00:08]} 51. Nf5 {[%clk 00:01:12]}
{[%emt 00:00:02]} Qh5+ {[%clk 00:00:25]} {[%emt 00:00:05]} 52. Qh3 {[%clk
00:00:57]} {[%emt 00:00:25]} Qxh3+ {[%clk 00:00:28]} {[%emt 00:00:08]} 53. Kxh3
{[%clk 00:01:04]} {[%emt 00:00:02]} Rd2 {[%clk 00:00:32]} {[%emt 00:00:06]} 54.
Nh6+ {[%clk 00:00:54]} {[%emt 00:00:20]} Kg7 {[%clk 00:00:35]} {[%emt
00:00:07]} 55. Nf5+ {[%clk 00:01:00]} {[%emt 00:00:05]} Kg6 {[%clk 00:00:37]}
{[%emt 00:00:08]} 56. Nh4+ {[%clk 00:00:25]} {[%emt 00:00:44]} Kf7 {[%clk
00:00:45]} {[%emt 00:00:02]} 57. Bc1 {[%clk 00:00:30]} {[%emt 00:00:06]} Rc2
{[%clk 00:00:48]} {[%emt 00:00:07]} 0-1